Workbook

Sheet Order Forms
A11: GSBN & ONLINE LEASING | F11: E-MAIL
F12: Double Click Your Selection
A13: Get Order Confirmation Immediately!
M14: Samsung Systems
A15: Click on the Buttons | I15: \ | M15: Parts for Discontinued Systems
A22: *Terms and Conditions of Sale are as set forth in the Key Systems Dealer or Distributor Agreement. Prices subject to change without prior notice. | U22: Samsung Assurance
A24: Every effort has been made to eliminate errors and ambiguities in the information contained here in. Any questions concerning information presented here should be directed to SAMSUNG TELECOMMUNICATIONS AMERICA. SAMSUNG TELECOMMUNICATIONS AMERICA disclaims all liabilities for damages arising from erroneous interpretation or use of information presented in this price list workbook.

Sheet Parts for Discontinued Systems
A1: Samsung Parts for Discontinued Systems | H1: BCS1003001
A3: Dealer Acct.#: | C3: Dealer:
A4: Bill To: | C4: Ship To:
G5: Cost1
C6: Date: | E6: PO#: | G6: >=1
A7: Contact: | C7: Phone: | G7: 0
A9: Payment:
A10: UPS Shipping:
A11: Ship Date: | C11: Target Installation Date:
A13: Fax: (800) 227-8234 | C13: DEALER DISCOUNT*:
A14: NOTE: Samsung will accept customer orders for Discontinued Parts and fulfill them, after the manufacture discontinued date, until inventory of discontinued items has been exhausted. Parts on this list with only carry a 90 day warranty from the purchase date. | I14: INPUT COUNTRY ON P16:
A15: ORDER NO. | B15: ITEM | D15: QTY. | E15: PRICE | F15: Cost | G15: Cost1 | J15: USA
G16: =F16 -> 0 | I16: 171 | J16: 178
E17: TOTAL | F17: =SUM(F16) -> 0 | G17: =G16 -> 0

Sheet Samsung Systems
A1: Samsung Systems Order Form | H1: BCS1003001
A3: Dealer Acct.#: | C3: Dealer:
A4: Bill To: | C4: Ship To:
G5: Cost1
C6: Date: | E6: PO#: | G6: >=1
A7: Contact: | C7: Phone: | G7: 0
A9: Payment:
A10: UPS Shipping: | L10: OfficeServ 7400
A11: Ship Date: | C11: Target Installation Date: | H11: 0.1 | J11: 0.12 | L11: OfficeServ 7200
A12: Select System - Double Click | C12: Comments: | H12: 0.18 | L12: OfficeServ 7200-S
C13: PARTNER DISCOUNT*: | H13: 0.24 | L13: OfficeServ 7100
H14: 0.26 | L14: OfficeServ 7030
A15: ORDER NO. | B15: ITEM | D15: QTY. | E15: PRICE | F15: COST | G15: Cost1 | H15: 0.28 | L15: Ubigate
A16: OfficeServ 7400 Platform | G16: =SUM(G17+G21+G23+G39) -> 0 | H16: 0.3 | L16: Call Management Suite (CMS) | Q16: INPUT COUNTRY ON S16: | S16: USA
A17: OS 7400 STARTER KITS | G17: =SUM(G18:G20) -> 0 | L17: Contact Center Pro (SCC Pro) | Q17: USA | R17: CANADA | S17: 1.15
A18: 7400KIT | B18: OS 7400 Starter Kit Includes: 1ea. - OS 7400 Universal cabinet, 1 ea - Master Processor (MP40), 1 ea - SD Card, 1 ea - Local Processor (LP40), 1 ea - Common Resource Module (CRM) | E18: =IF($S$16="USA",Q18,R18) -> 2680 | F18: =+(1-E$13)*D18*E18 -> 0 | G18: =F18 -> 0 | Q18: 2680 | R18: =ROUND(Q18*(S$17),0) -> 3082
A19: F-B-OS7400-IP | B19: OS 7400 IP Starter Kit Includes: 1ea - OS 7400 Universal Cabinet, 1ea - Master Processor (MP40), 1ea - SD Card, 1ea - Local Processor (LP40), 1 ea. CRM Card, 24 ea. SIP Trunk Licenses, 2 ea. OAS Card | E19: =IF($S$16="USA",Q19,R19) -> 4020 | F19: =+(1-E$13)*D19*E19 -> 0 | G19: =F19 -> 0 | Q19: 4020 | R19: =ROUND(Q19*(S$17),0) -> 4623
A20: 7400EKIT | B20: OS 7400 Expansion Kit Includes: 1ea - OS 7400 Universal cabinet, 1ea - Local Processor (LP40) with link cables | E20: 2010 | F20: =+(1-E$13)*D20*E20 -> 0 | G20: =F20 -> 0 | Q20: 2010 | R20: 2312
A21: OS 7400 SOFTWARE | G21: =SUM(G22:G22) -> 0
A22: KPOS74WSD/XAR | B22: OS-7400 System SD card (2GB) | E22: 110 | F22: =+(1-E$13)*D22*E22 -> 0 | G22: =F22 -> 0 | Q22: 110 | R22: 127
A23: OS 7400 COMMON & PERIPHERAL EQUIPMENT | G23: =SUM(G24:G38) -> 0
A24: KP-OSDBDL2/XAR | B24: OS7200 16-port DLI-2 | E24: 505 | F24: =+(1-E$13)*D24*E24 -> 0 | G24: =F24 -> 0 | Q24: 505 | R24: 581
A25: OS7400BSL3/XAR | B25: OS 16 Port Analog Single Line Card with Message Waiting | E25: 470 | F25: 0 | G25: 0 | Q25: 470 | R25: 541
A26: OS7400B8H4/XAR | B26: OS Combo Card with 8DLI + 8SLI Ports | E26: 550 | F26: 0 | G26: 0 | Q26: 550 | R26: 633
A27: KP-OSDB8D/XAR | B27: OS7200 8-port DLI Card | E27: 253 | F27: 0 | G27: 0 | Q27: 253 | R27: 291
A28: OS7400B8S3/XAR | B28: OS 8 Port Analog Single Line Card | E28: 330 | F28: 0 | G28: 0 | Q28: 330 | R28: 380
A29: KP-OSDB8T2/XAR | B29: OS 7200 8-port Loop Trunk Card | E29: 308 | F29: 0 | G29: 0 | Q29: 308 | R29: 354
A30: KP-OSDB16T/XAR | B30: OS7000 16-Port Loop Trunk Card | E30: 654 | F30: 0 | G30: 0 | Q30: 654 | R30: 752
A31: KP-OSDBTE1/XAR | B31: OS7200 T1-PRI Trunk Card | E31: 992 | F31: 0 | G31: 0 | Q31: 992 | R31: 1141
A32: KPOS74BTEP/XAR | B32: 2 CKT T-1-PRI Card (TEPRI2) Supported on OS7400 - Only | E32: 1325 | F32: 0 | G32: 0 | Q32: 1325 | R32: 1524
A33: KPOS74BMGI/XAR | B33: OS MGI-64 Gateway Card Required for IP-UMS Configured for 3-8 Fax Ports Requires IP Certification for Tech Support | E33: 3000 | F33: =+(1-E$13)*D33*E33 -> 0 | G33: 0 | Q33: 3000 | R33: 3450
A34: KPOS74BOAS/XAR | B34: OS7100, OS-7200, 7200-S & 7400 Optional Applications Service Card (OAS) Supports 1-2 Fax Ports when using IP-UMS Fax Option Requires IP Certification for Tech Support | E34: 550 | F34: 0 | G34: 0 | Q34: 550 | R34: 633
A35: OS7400BCNF/XAR | B35: 24 Port Conference Card for OfficeServ 7200-S, OfficeServ 7200, and OfficeServ 7400 | E35: =IF($S$16="USA",Q35,R35) -> 600 | F35: =+(1-E$13)*D35*E35 -> 0 | G35: =F35 -> 0 | Q35: 600 | R35: 690
A36: KPOS74BCRM/XAR | B36: Common Resource Module (CRM) Installs on the LP40 | E36: 253 | F36: 0 | G36: 0 | Q36: 253 | R36: 291
A37: KP-OSDBMIS/XAR | B37: Miscellaneous Card Installs on the LP40 | E37: 131 | F37: 0 | G37: 0 | Q37: 131 | R37: 151
A38: KPOS74BMOD/XAR | B38: OS Modem Card This model is a universal modem for all 7000 systems | E38: =IF($S$16="USA",Q38,R38) -> 220 | F38: =+(1-E$13)*D38*E38 -> 0 | G38: =F38 -> 0 | Q38: 220 | R38: 253
A39: SINGLE ITEMS & SPARES | D39: 1 | G39: =SUM(G40:G43) -> 0
A40: KPOS74MA/XAR | B40: OS 7400 Universal Cabinet | E40: 1655 | F40: =+(1-E$13)*D40*E40 -> 0 | G40: =F40 -> 0 | Q40: 1655 | R40: 1903
A41: KPOS74BMPM/XAR | B41: Master Processor MP40 | E41: 992 | F41: =+(1-E$13)*D41*E41 -> 0 | G41: =F41 -> 0 | Q41: 992 | R41: 1141
A42: KPOS74BLP/XAR | B42: Local Processor LP40 | E42: 550 | F42: 0 | G42: =F42 -> 0 | Q42: 550 | R42: 633
A43: F-PGA44-00028A | B43: OS 7400 Power Supply | E43: 442 | F43: 0 | G43: =F43 -> 0 | Q43: 442 | R43: 508
A44: OfficeServ 7200 Platform | G44: =SUM(G45+G49+G51+G65) -> 0
A45: OS 7200 KITS | G45: =SUM(G46:G48) -> 0
A46: 7200KIT | B46: OS 7200 Starter Kit Contains: Universal Cabinet, MP20 Card, Misc Card, SD card w/Software Program | E46: =IF($S$16="USA",Q46,R46) -> 1082 | F46: =+(1-E$13)*D46*E46 -> 0 | G46: =F46 -> 0 | Q46: 1082 | R46: 1244
A47: 7200EKIT | B47: OS 7200 Expansion Kit Contains: Universal Cabinet, LCP Card w/Link Cables | E47: 937 | F47: =+(1-E$13)*D47*E47 -> 0 | G47: =F47 -> 0 | Q47: 937 | R47: 1078
A48: F-B-OS7200-IP | B48: OS 7200 IP Starter Kit Contains: Universal Cabinet, MP20 Procesor, SD Card w/Software Program , 1 ea. Misc Card, 1 ea. OAS Card, 12 ea. SIP Trunk Licenses | E48: 1440 | F48: =+(1-E$13)*D48*E48 -> 0 | G48: =F48 -> 0 | Q48: 1440 | R48: 1656
A49: OS 7200 SOFTWARE | D49: 1 | G49: =SUM(G50:G50) -> 0
A50: KP-OSDWSDC/XAR | B50: 2GB SD Media Card with 7200 Software Program | E50: 109 | F50: =+(1-E$13)*D50*E50 -> 0 | G50: =F50 -> 0 | Q50: 109 | R50: 125
A51: OS 7200 COMMON & PERIPHERAL EQUIPMENT | D51: 1 | G51: =SUM(G52:G64) -> 0
A52: KPOS74BCRM/XAR | B52: Common Resource Module (CRM) Installs on the MCP/MP20 | E52: 253 | F52: =+(1-E$13)*D52*E52 -> 0 | G52: =F52 -> 0 | Q52: 253 | R52: 291
A53: KP-OSDBMIS/XAR | B53: Miscellaneous Card (OS MISC) | E53: 131 | F53: =+(1-E$13)*D53*E53 -> 0 | G53: =F53 -> 0 | Q53: 131 | R53: 151
A54: KP-OSDBDL2/XAR | B54: OS7200 16-Port DLI-2 Digital Line Interface | E54: 505 | F54: 0 | G54: 0 | Q54: 505 | R54: 581
A55: OS7400BSL3/XAR | B55: OS 16 Port Analog Single Line Card with Message Waiting | E55: 470 | F55: 0 | G55: 0 | Q55: 470 | R55: 541
A56: OS7400B8H4/XAR | B56: OS Combo Card with 8DLI + 8SLI Ports | E56: 550 | F56: 0 | G56: 0 | Q56: 550 | R56: 633
A57: KP-OSDB8D/XAR | B57: OS7200 8-Port DLI Card | E57: 253 | F57: 0 | G57: 0 | Q57: 253 | R57: 291
A58: OS7400B8S3/XAR | B58: OS 8 Port Analog Single Line Card | E58: 330 | F58: 0 | G58: 0 | Q58: 330 | R58: 380
A59: KP-OSDB8T2/XAR | B59: OS7200 8-Port Loop Trunk Card | E59: 308 | F59: 0 | G59: 0 | Q59: 308 | R59: 354
A60: KP-OSDB16T/XAR | B60: OS7200 16-Port Loop Trunk Card | E60: 654 | F60: 0 | G60: 0 | Q60: 654 | R60: 752
A61: KP-OSDBTE1/XAR | B61: OS7200 T1/PRI Trunk Card | E61: 992 | F61: 0 | G61: 0 | Q61: 992 | R61: 1141
A62: KPOS74BOAS/XAR | B62: OS7100, OS-7200, 7200-S & 7400 Optional Applications Service Card (OAS) Supports 1-2 Fax Ports when using IP-UMS Fax Option Requires IP Certification for Tech Support | E62: 550 | F62: =+(1-E$13)*D62*E62 -> 0 | G62: 0 | Q62: 550 | R62: 633
A63: OS7400BCNF/XAR | B63: 24 Port Conference Card for OfficeServ 7200-S, OfficeServ 7200, and OfficeServ 7400 | E63: 600 | F63: =+(1-E$13)*D63*E63 -> 0 | G63: 0 | Q63: 600 | R63: 690
A64: KPOS74BMOD/XAR | B64: OS Modem Card This model is a universal modem for all 7000 systems | E64: =IF($S$16="USA",Q64,R64) -> 220 | F64: =+(1-E$13)*D64*E64 -> 0 | G64: =F64 -> 0 | Q64: 220 | R64: 253
A65: SINGLE ITEMS & SPARES | G65: =SUM(G66:G70) -> 0
A66: KP-OSDBMP2/XAR | B66: OS7200 MP20 Main Control Processor | E66: 772 | F66: =+(1-E$13)*D66*E66 -> 0 | G66: =F66 -> 0 | Q66: 772 | R66: 888
A67: KP-OSDBLCP/XAR | B67: OS7200 Local Control Processor | E67: 385 | F67: =+(1-E$13)*D67*E67 -> 0 | G67: =F67 -> 0 | Q67: 385 | R67: 443
A68: KP-OSDMA/XAR | B68: OS7200 Universal Cabinet | E68: 882 | F68: 0 | G68: =F68 -> 0 | Q68: 882 | R68: 1014
A69: KP-OSDBPSU/XAR | B69: OS7200 PSU | E69: 304 | F69: 0 | G69: =F69 -> 0 | Q69: 304 | R69: 350
A70: KP-OSDAWMB/XAR | B70: OS7200 Wall Mount Bracket | E70: 21 | F70: 0 | G70: =F70 -> 0 | Q70: 21 | R70: 24
A71: OfficeServ 7200-S Platform | G71: =SUM(G72+G75+G77+G93) -> 0
A72: OS 7200-S KITS | G72: =SUM(G73:G74) -> 0
A73: F-B-OS7200S-01 | B73: OS 7200-S Starter Kit Contains: 7200 Cabinet, MP20S Card, SD card w/Software Program and 4 ports of Voice Mail | E73: =IF($S$16="USA",Q73,R73) -> 1099 | F73: =+(1-E$13)*D73*E73 -> 0 | G73: =F73 -> 0 | Q73: 1099 | R73: 1264
A74: F-B-OS7200S-IP | B74: OS 7200-S IP Starter Kit Contains: 7200 Cabinet, MP20S Card, SD card w/Software Program and 4 ports of Voice Mail, 6 ea. OS MGI License, 8 ea. SIP Trunk Licenses | E74: =IF($S$16="USA",Q74,R74) -> 1382 | F74: =+(1-E$13)*D74*E74 -> 0 | G74: =F74 -> 0 | Q74: 1382 | R74: 1589
A75: OS 7200-S SOFTWARE | G75: =SUM(G76:G76) -> 0
A76: OS-720WSDC/XAR | B76: 2GB SD Media Card with Software Program for MP20S | E76: =IF($S$16="USA",Q76,R76) -> 109 | F76: =+(1-E$13)*D76*E76 -> 0 | G76: =F76 -> 0 | Q76: 109 | R76: 125
A77: OS 7200-S COMMON & PERIPHERAL EQUIPMENT | G77: =SUM(G78:G92) -> 0
A78: KP-OSDBDL2/XAR | B78: OS7200 16-Port DLI-2 Digital Line Interface | E78: =IF($S$16="USA",Q78,R78) -> 505 | F78: =+(1-E$13)*D78*E78 -> 0 | G78: =F78 -> 0 | Q78: 505 | R78: 581
A79: OS7400BSL3/XAR | B79: OS 16 Port Analog Single Line Card with Message Waiting | E79: 470 | F79: 0 | G79: =F79 -> 0 | Q79: 470 | R79: 541
A80: OS7400B8H4/XAR | B80: OS Combo Card with 8DLI + 8SLI Ports | E80: 550 | F80: 0 | G80: 0 | Q80: 550 | R80: 633
A81: KP-OSDB8D/XAR | B81: OS7200 8-Port DLI Card | E81: 253 | F81: 0 | G81: 0 | Q81: 253 | R81: 291
A82: OS7400B8S3/XAR | B82: OS 8 Port Analog Single Line Card | E82: 330 | F82: 0 | G82: 0 | Q82: 330 | R82: =ROUND(Q82*(S$17),0) -> 380
A83: KP-OSDB8T2/XAR | B83: OS7200 8-Port Loop Trunk Card | E83: 308 | F83: 0 | G83: 0 | Q83: 308 | R83: 354
A84: KP-OSDB16T/XAR | B84: OS7200 16-Port Loop Trunk Card | E84: 654 | F84: 0 | G84: 0 | Q84: 654 | R84: 752
A85: KP-OSDBTE1/XAR | B85: OS7200 T1/PRI Trunk Card | E85: 992 | F85: 0 | G85: 0 | Q85: 992 | R85: 1141
A86: KPOS74BOAS/XAR | B86: OS7100, OS-7200, 7200-S & 7400 Optional Applications Service Card (OAS) Requires IP Certification for Tech Support | E86: 550 | F86: =+(1-E$13)*D86*E86 -> 0 | G86: 0 | Q86: 550 | R86: 633
A87: OS7400BCNF/XAR | B87: 24 Port Conference Card for OfficeServ 7200-S, OfficeServ 7200, and OfficeServ 7400 | E87: 600 | F87: 0 | G87: 0 | Q87: 600 | R87: 690
A88: KPOS74BMOD/XAR | B88: OS Modem Card This model is a universal modem for all 7000 systems | E88: 220 | F88: 0 | G88: 0 | Q88: 220 | R88: 253
A89: KPOS71BUNI/XAR | B89: Universal Card (UNI) This card has 3 connectors to house up to 3 station/trunk modules. | E89: 178 | F89: 0 | G89: 0 | Q89: 178 | R89: 205
A90: KPOS71BDLM/XAR | B90: 4DLM (4-Ckt Digital Line Module) 4-Circuit Digital Station Interface Module | E90: 135 | F90: 0 | G90: 0 | Q90: 135 | R90: 155
A91: OS-710BSL2/XAR | B91: OS 4SL2U (4-Ckt Single-Line Module) 4-Circuit Single-Line (analog) Interface Module | E91: 185 | F91: 0 | G91: 0 | Q91: 185 | R91: 213
A92: KPOS71BTRM/XAR | B92: 4TRM (4-Ckt C.O. Interface Module) 4-Circuit C.O. Line (analog trunk) Module | E92: 168 | F92: 0 | G92: 0 | Q92: 168 | R92: 193
A93: SINGLE ITEMS & SPARES | G93: =SUM(G94:G96) -> 0
A94: OS-720BMPS/XAR | B94: MP20S Main Control Processor Card for 7200-S system with 4 ports of Voice Mail | E94: 1757 | F94: =+(1-E$13)*D94*E94 -> 0 | G94: =F94 -> 0 | Q94: 1757 | R94: 2021
A95: KP-OSDMA/XAR | B95: OS7200 Universal Cabinet | E95: 882 | F95: =+(1-E$13)*D95*E95 -> 0 | G95: =F95 -> 0 | Q95: 882 | R95: 1014
A96: KP-OSDAWMB/XAR | B96: OS7200 Wall Mount Bracket | E96: 21 | F96: 0 | G96: =F96 -> 0 | Q96: 21 | R96: 24
A97: OfficeServ 7100 Platform | G97: =SUM(G98+G101+G103) -> 0
A98: OS 7100 KITS | G98: =SUM(G99:G100) -> 0
A99: OS71SBSPKG10A | B99: OS 7100 Small Business System Package - iDCS Includes: 1ea -OS 7100 System Cabinet, 1ea - MP10a Processor Card, 1ea - OS7100SD10a Card, 1ea - UNI Card, 1ea - 4TRM Card, 2ea - 4DLM Card, 6ea - iDCS 28D Keysets When using IP Telephony Applications (IP Keysets, WAP, SPNet) with this Package, MGI Channels must be licensed. Please see the OfficeServ Applications section of this form. | E99: =IF($S$16="USA",Q99,R99) -> 1985 | F99: =+(1-E$13)*D99*E99 -> 0 | G99: =F99 -> 0 | Q99: 1985 | R99: 2283
A100: F-B-OS7100-IP | B100: OS7100 IP Starter Kit Includes: 1 ea. System Cabinet with Power Supply, AC Power Cord and Wall Mount Bracket, 1 ea. MP10a Main Processor Card, 1 ea. SD Media Card, 4 ea. OS MGI License, 6 ea. SIP Trunk Licenses | E100: 892 | F100: =+(1-E$13)*D100*E100 -> 0 | G100: =F100 -> 0 | Q100: 892 | R100: 1026
A101: OS 7100 SOFTWARE | G101: =SUM(G102:G102) -> 0
A102: KPOS71WM3/XAR | B102: OS7100SDa Media card with system software for MP10a (2GB) For Use in the MP10a Only | E102: 65 | F102: =+(1-E$13)*D102*E102 -> 0 | G102: 0 | Q102: 65 | R102: 75
A103: OS 7100 COMMON & PERIPHERAL EQUIPMENT | D103: 1 | G103: =SUM(G104:G123) -> 0
A104: KPOS71M/XAR | B104: System Cabinet The OS 7100 System Cabinet Includes: Power Supply, AC Power Cord & wall mount bracket. | E104: 555 | F104: =+(1-E$13)*D104*E104 -> 0 | G104: 0 | Q104: 555 | R104: 638
A105: F-PGA44-00049A | B105: OfficeServ 7100 Power Supply | E105: 100 | F105: 0 | G105: =F105 -> 0 | Q105: 100 | R105: 115
A106: KPOS71ARMB/XAR | B106: Rack Mount Bracket The Rack-Mount Bracket is used to mount the System Cabinet in a standard 19" data equipment rack | E106: 38 | F106: 0 | G106: 0 | Q106: 38 | R106: 44
A107: KPOS71BMP3/XAR | B107: MP10a Main Processor Card for the OS-7100 system The MP10a requires the OS7100 SD10a Card (Purchased Separately) | E107: 941 | F107: 0 | G107: 0 | Q107: 941 | R107: 1082
A108: F-PGA31-00003A | B108: OS7100 Fan | E108: 10 | F108: 0 | G108: 0 | Q108: 10 | R108: 12
A109: OS7100MP10A1 | B109: OS7100 MP10a with SD Card | E109: 1006 | F109: 0 | G109: =F109 -> 0 | Q109: 1006 | R109: 1157
A110: KPOS71BUNI/XAR | B110: Universal Card (UNI) This card has 3 connectors to house up to 3 station/trunk modules. | E110: 178 | F110: 0 | G110: 0 | Q110: 178 | R110: 205
A111: KPOS71BDLM/XAR | B111: 4DLM (4-Ckt Digital Line Module) 4-Circuit Digital Station Interface Module | E111: 135 | F111: 0 | G111: 0 | Q111: 135 | R111: 155
A112: OS-710BSL2/XAR | B112: OS 4SL2U (4-Ckt Single-Line Module) 4-Circuit Single-Line (analog) Interface Module | E112: 185 | F112: 0 | G112: 0 | Q112: 185 | R112: 213
A113: KPOS71BTRM/XAR | B113: 4TRM (4-Ckt C.O. Interface Module) 4-Circuit C.O. Line (analog trunk) Module | E113: 168 | F113: 0 | G113: 0 | Q113: 168 | R113: 193
A114: KPOS74BOAS/XAR | B114: OS7100, OS-7200, 7200-S & 7400 Optional Applications Service Card (OAS) Requires IP Certification for Tech Support | E114: 550 | F114: 0 | G114: 0 | Q114: 550 | R114: 633
A115: KPOS74BMOD/XAR | B115: OS Modem Card This model is a universal modem for all 7000 systems | E115: 220 | F115: 0 | G115: 0 | Q115: 220 | R115: 253
A116: KP-OSDB16T/XAR | B116: OS7000 16-Port Loop Trunk Card | E116: 654 | F116: 0 | G116: 0 | Q116: 654 | R116: 752
A117: OS7400B8S3/XAR | B117: OS 8 Port Analog Single Line Card | E117: 330 | F117: 0 | G117: 0 | Q117: 330 | R117: 380
A118: OS7400BSL3/XAR | B118: OS 16 Port Analog Single Line Card with Message Waiting | E118: 470 | F118: 0 | G118: 0 | Q118: 470 | R118: 541
A119: OS7400B8H4/XAR | B119: OS Combo Card with 8DLI + 8SLI Ports | E119: 550 | F119: 0 | G119: 0 | Q119: 550 | R119: 633
A120: KP-OSDB8T2/XAR | B120: OS 7200 8-Port Loop Trunk Card | E120: 308 | F120: 0 | G120: 0 | Q120: 308 | R120: 354
A121: KP-OSDBTE1/XAR | B121: OS7200 T1/PRI Trunk Card | E121: =IF($S$16="USA",Q121,R121) -> 992 | F121: 0 | G121: 0 | Q121: 992 | R121: 1141
A122: KP-OSDB8D/XAR | B122: OS7200 8-port DLI card | E122: 253 | F122: 0 | G122: 0 | Q122: 253 | R122: 291
A123: KP-OSDBDL2/XAR | B123: OS7200 16-port DLI-2 | E123: 505 | F123: 0 | G123: 0 | Q123: 505 | R123: 581
A124: OfficeServ 7030 Platform | G124: =SUM(G125+G128+G135) -> 0
A125: OS 7030 KITS | G125: =SUM(G126:G127) -> 0
A126: F-B-OS7030-03 | B126: OS 7030 Starter Kit with 18B iDCS Keysets Includes: 7030 KSU w/Software Program, 2 ports of Auto Attendant, 1 ea. 4DM and 3 ea. iDCS 18B keysets, and 2 single line ports | E126: =IF($S$16="USA",Q126,R126) -> 890 | F126: =+(1-E$13)*D126*E126 -> 0 | G126: =F126 -> 0 | Q126: 890 | R126: 1024
A127: F-B-OS7030-IP | B127: OS 7030 IP Starter Kit Includes: 7030 KSU w/Software Program, 2 ports of Auto Attendant, 4 ea. OS MGI License | E127: =IF($S$16="USA",Q127,R127) -> 440 | F127: =+(1-E$13)*D127*E127 -> 0 | G127: =F127 -> 0 | Q127: 440 | R127: 506
A128: OS 7030 COMMON & PERIPHERAL EQUIPMENT | D128: 1 | G128: =SUM(G129:G134) -> 0
A129: OS-703B2D/XAR | B129: OS7030 2 port digital station module | E129: 74 | F129: =+(1-E$13)*D129*E129 -> 0 | G129: 0 | Q129: 74 | R129: 85
A130: OS-703B4D/XAR | B130: OS7030 4 port digital station module | E130: 90 | F130: 0 | G130: 0 | Q130: 90 | R130: 104
A131: OS-703B4S/XAR | B131: OS7030 4 port single line module with CID | E131: 129 | F131: 0 | G131: 0 | Q131: 129 | R131: 148
A132: OS-703B4T/XAR | B132: OS7030 4 port trunk module with CID | E132: 119 | F132: 0 | G132: 0 | Q132: 119 | R132: 137
A133: KPOS74BMOD/XAR | B133: OS Modem Card This model is a universal modem for all 7000 systems | E133: =IF($S$16="USA",Q133,R133) -> 220 | F133: =+(1-E$13)*D133*E133 -> 0 | G133: =F133 -> 0 | Q133: 220 | R133: 253
A134: F-PGA44-00061B | B134: OS7030 Power Supply | E134: 80 | F134: 0 | G134: 0 | Q134: 80 | R134: 92
A135: SINGLE ITEMS & SPARES | D135: 11 | G135: =SUM(G136:G136) -> 0
A136: OS-703MA/XAR | B136: OS7030 Cabinet (Main KSU unit) | E136: 515 | F136: =+(1-E$13)*D136*E136 -> 0 | G136: 0 | Q136: 515 | R136: 592
A137: Ubigate | G137: =G138 -> 0
A138: UBIGATE ETHERNET SWITCHES | G138: =SUM(G139:G143) -> 0
A139: iES-4024GD/XAR | B139: L3 24 Port POE+ switch 1 Year Warranty | E139: =IF($S$16="USA",Q139,R139) -> 5580 | F139: =+(1-E$13)*D139*E139 -> 0 | G139: =F139 -> 0 | I139: 10 | Q139: 5580
A140: iES-4028XP/XAR | B140: L2 24 Port Dual Power POE+ Switch 1 Year Warranty | E140: 3272 | F140: 0 | G140: =F140 -> 0 | I140: 20 | J140: 1 | K140: 1 | L140: 1 | M140: 1 | N140: 1 | Q140: 3272
A141: iES-4028GP/XAR | B141: L2 24 Port Single Power POE+ Switch 1 Year Warranty | E141: 2062 | F141: 0 | G141: =F141 -> 0 | I141: 30 | J141: 2 | K141: 2 | L141: 2 | M141: 2 | N141: 2 | Q141: 2062
A142: IES-4028FP/XAR | B142: iES 24 port 10/100M Layer 2 Managed PoE Ethernet Switch 1 Year Warranty | E142: =IF($S$16="USA",Q142,R142) -> 615 | F142: =+(1-E$13)*D142*E142 -> 0 | G142: =F142 -> 0 | I142: 40 | J142: 3 | K142: 3 | L142: 3 | M142: 3 | N142: 3 | Q142: 615 | R142: 707
A143: IES-4024GP/XAR | B143: iES 22 port 10/100/1000M Layer 2 Managed PoE Ethernet Switch 1 Year Warranty | E143: =IF($S$16="USA",Q143,R143) -> 950 | F143: =+(1-E$13)*D143*E143 -> 0 | G143: =F143 -> 0 | I143: 50 | J143: 4 | K143: 4 | L143: 4 | M143: 4 | N143: 4 | Q143: 950 | R143: 1093
A144: Terminals | G144: =SUM(G145+G151) -> 0 | I144: 60 | J144: 5 | K144: 5 | L144: 5 | M144: 5 | N144: 5
A145: iDCS DIGITAL KEYSETS | D145: 1 | G145: =SUM(G146:G150) -> 0 | I145: 70 | J145: 6 | K145: 6 | L145: 6 | M145: 6 | N145: 6
A146: KPDF28SED/XAR | B146: iDCS 28-Button Speaker Phone (Dark Gray) | E146: =IF($S$16="USA",Q146,R146) -> 219 | F146: =+(1-E$13)*D146*E146 -> 0 | G146: =F146 -> 0 | I146: 120 | J146: 9 | K146: 9 | L146: 9 | M146: 9 | N146: 9 | Q146: 219 | R146: =ROUND(Q146*(S$17),0) -> 252
A147: KPDF18SED/XAR | B147: iDCS 18-Button Speaker Phone (Dark Gray) | E147: =IF($S$16="USA",Q147,R147) -> 187 | F147: =+(1-E$13)*D147*E147 -> 0 | G147: =F147 -> 0 | I147: 130 | J147: 20 | K147: 20 | L147: 12 | M147: 15 | N147: 16 | Q147: 187 | R147: 215
A148: KPDF08SED/XAR | B148: iDCS 8-Button Speaker Phone (Dark Gray) | E148: =IF($S$16="USA",Q148,R148) -> 154 | F148: 0 | G148: 0 | I148: 140 | J148: 30 | K148: 30 | L148: 14 | M148: 20 | N148: 24 | Q148: 154 | R148: 177
A149: KPDF14SDSD/XAR | B149: iDCS 14-Button Add-On Module Strip (Dark Gray) | E149: =IF($S$16="USA",Q149,R149) -> 44 | F149: 0 | G149: 0 | I149: 150 | Q149: 44 | R149: 51
A150: KPDF64SDSD/XAR | B150: iDCS 64-Button Add-On Console (Dark Gray) | E150: =IF($S$16="USA",Q150,R150) -> 230 | F150: 0 | G150: 0 | I150: 200 | Q150: 230 | R150: 265
A151: IP KEYSETS | G151: =SUM(G152:G172) -> 0 | I151: 250
A152: SMT-i6010K/XAR | B152: i6010 12 Button IP Phone 5 Year Warranty {Promotional Price!} | E152: =IF($S$16="USA",Q152,R152) -> 180 | F152: =+(1-E$13)*D152*E152 -> 0 | G152: 0 | I152: 300 | Q152: 180 | R152: 207
A153: SMT-i6011K/XAR | B153: i6011 12 Button IP Phone 5 Year Warranty | E153: 215 | F153: 0 | G153: 0 | I153: 400 | Q153: 215 | R153: 247
A154: SMT-i6020K/XAR | B154: i6020 24 Button IP Phone 5 Year Warranty {Promotional Price!} | E154: 199 | F154: 0 | G154: 0 | I154: 500 | J154: 40 | K154: 40 | L154: 16 | M154: 25 | N154: 32 | Q154: 199 | R154: 228
A155: SMT-i6021K/XAR | B155: i6021 24 Button IP Phone 5 Year Warranty | E155: 239 | F155: =+(1-E$13)*D155*E155 -> 0 | G155: 0 | J155: 50 | K155: 50 | L155: 18 | M155: 30 | N155: 40 | Q155: 239 | R155: 275
A156: SMT-A60PW/XAR | B156: i6000 Power Supply | E156: 32 | F156: 0 | G156: 0 | J156: 60 | K156: 60 | L156: 20 | M156: 35 | N156: 48 | Q156: 32 | R156: 37
A157: SMT-A60WB/XAR | B157: SMT 6000 series wall mount | E157: 20 | F157: 0 | G157: 0 | I157: 2 | J157: 80 | K157: 80 | L157: 28 | M157: 45 | N157: 64 | Q157: 20 | R157: 23
A158: SMT-i3105D/XAR | B158: SMT-i3105D Entry Level 5B IP telphone, Dark Gray Power Adapter Sold Separately 5 Year Warranty | E158: 123 | F158: 0 | G158: 0 | I158: 3 | J158: 90 | K158: 90 | L158: 32 | M158: 50 | N158: 72 | Q158: 123 | R158: 141
A159: SMT-i5210S/XAR | B159: SMT-i5210S 14B Backlit IP telephone, Dark Gray Power Adapter Sold Separately 5 Year Warranty | E159: 208 | F159: 0 | G159: 0 | I159: 4 | J159: 100 | K159: 100 | L159: 36 | M159: 70 | N159: 80 | Q159: 208 | R159: 239
A160: SMT-i5220K/XAR | B160: SMT-i5220K 24B Backlit IP telephone, Dark Gray Power Adapter Sold Separately 5 Year Warranty | E160: 243 | F160: 0 | G160: 0 | I160: 5 | J160: 150 | K160: 150 | L160: 40 | M160: 100 | N160: 88 | Q160: 243 | R160: 279
A161: SMT-i5230D/XAR | B161: SMT-i5230D 5B Desiless Backlit IP telephone, Dark Gray Power Adapter Sold Separately 5 Year Warranty | E161: 270 | F161: 0 | G161: 0 | Q161: 270 | R161: 311
A162: SMT-i5343K/XAR | B162: SMT-i5343K IP Telephone with Color LCD, Dark Gray Power Adapter Sold Separately 5 Year Warranty | E162: 399 | F162: 0 | G162: 0 | Q162: 399 | R162: 459
A163: SMT-AW53CA/XAR | B163: USB Camera for SMT-i5343 | E163: 99 | F163: 0 | G163: 0 | Q163: 99 | R163: 114
A164: WDS-AADT/XAR | B164: SMT-i5343 Series Power Adapter One per Telephone required, if POE switch is not used | E164: 25 | F164: 0 | G164: 0 | Q164: 25 | R164: 29
A165: SMT-i5264D/XAR | B165: SMT-i5264D 64B IP Add-On Module, Dark Gray Power Adapter Sold Separately 5 Year Warranty | E165: 255 | F165: 0 | G165: 0 | Q165: 255 | R165: 293
A166: SMT-A52WB/XAR | B166: Wall Mount Bracket for SMT-i5200 Series IP telephones, Dark Gray | E166: 16 | F166: 0 | G166: 0 | Q166: 16 | R166: 18
A167: SMT-A52GE/XAR | B167: SMT-i5200 Series Gigabit Module adapter, Dark Gray | E167: 96 | F167: 0 | G167: 0 | Q167: 96 | R167: 110
A168: SMT-A53PW/XAR | B168: SMT-i5200 Series Power Adapter, One per Telephone or SMT-i5264D AOM is required, if PoE Switch is not used. | E168: 20 | F168: 0 | G168: 0 | Q168: 20 | R168: 23
A169: SMT-A53PA/XAR | B169: SMT-i3100 Series Power Adapter, One per Telephone required, if PoE Switch is not used | E169: 20 | F169: 0 | G169: 0 | Q169: 20 | R169: 23
A170: F-PGA96-00893B | B170: Handset with cord for SMT-i5210, SMT-i5220, SMT-i5230, SMT-i5243 | E170: 23 | F170: 0 | G170: 0 | Q170: 23 | R170: 26
A171: F-PGB96-00896A | B171: Handset with cord for SMT-i3105 | E171: 23 | F171: 0 | G171: 0 | Q171: 23 | R171: 26
A172: F-PGA97-01992B | B172: Base Wedge for SMT-i5210, SMT-i5220, SMT-i5230, SMT-i5243 | E172: 16 | F172: 0 | G172: 0 | Q172: 16 | R172: 18
A173: Applications | G173: =SUM(G174,G176,G181,G189,G198,G207,G209) -> 0
A174: VOICE PROCESSING SYSTEMS | G174: =SUM(G175) -> 0
A175: OS7400BVM2/XAR | B175: SVMi-20i Card SSD 8G ( OS 7200 or OS 7400) | E175: =IF($S$16="USA",Q175,R175) -> 1298 | F175: =+(1-E$13)*D175*E175 -> 0 | G175: =F175 -> 0 | Q175: 1298 | R175: 1493
A176: CTI / LINK LICENSES (Must submit a License Request Form to order OfficeServ Licenses) | G176: =SUM(G177:G180) -> 0
A177: KP-AP2-WES/XAR | B177: OfficeServ Link V3 License (with EasySet) Required for Call, Operator, Open TSP, Messenger, and Communicator Deskphone Mode | E177: =IF($S$16="USA",Q177,R177) -> 206 | F177: =+(1-E$13)*D177*E177 -> 0 | G177: =F177 -> 0 | Q177: 206 | R177: 237
A178: KP-AP2-WOP/XAR | B178: OfficeServ Operator License | E178: =IF($S$16="USA",Q178,R178) -> 617 | F178: =+(1-E$13)*D178*E178 -> 0 | G178: 0 | Q178: 617 | R178: 710
A179: KP-AP2-WOT/XAR | B179: TSP License for Xchange for Samsung | E179: =IF($S$16="USA",Q179,R179) -> 75 | F179: 0 | G179: 0 | Q179: 75 | R179: 86
A180: KP-AP2-WUC/STD | B180: OS Communicator - DeskPhone Mode License (Any Samsung Keyset) | E180: =IF($S$16="USA",Q180,R180) -> 50 | F180: 0 | G180: 0 | I180: 6 | J180: 200 | L180: 44 | M180: 150 | N180: 98 | Q180: 50 | R180: 58
A181: RESOURCE LICENSE (Must submit a License Request Form to order OfficeServ Licenses) | G181: =SUM(G182:G188) -> 0 | I181: 7 | J181: 250 | L181: 48 | M181: 200 | N181: 128
A182: KP-AP5-WMG/XAR | B182: 7030 MGI License (Sold individually in increments of 1 to 4) | E182: =IF($S$16="USA",Q182,R182) -> 83 | F182: =+(1-E$13)*D182*E182 -> 0 | G182: 0 | I182: 10 | Q182: 83 | R182: 95
A183: KP-AP4-WMG/XAR | B183: 7100 MGI License (Sold individually in increments of 1 to 8) | E183: 83 | F183: =+(1-E$13)*D183*E183 -> 0 | G183: 0 | I183: 20 | Q183: 83 | R183: 95
A184: KP-AP7-WMG/STD | B184: 7200-S MGI License (Sold individually in increments of 1 to 6) | E184: 83 | F184: 0 | G184: 0 | I184: 30 | Q184: 83 | R184: 95
A185: KP-AP5-WVM/XAR | B185: 7030 Voice Mail License (turns on VM function) | E185: 255 | F185: 0 | G185: 0 | I185: 40 | Q185: 255 | R185: 293
A186: KP-AP7-WVM/STD | B186: 7200-S Voice Mail Expansion License (single port increments) Maximum 2 | E186: 130 | F186: 0 | G186: 0 | I186: 50 | Q186: 130 | R186: 150
A187: OS7000WVMS/XAR | B187: OS 7200/7400 SVMi-20i Voice Mail License (Maximum 20) (Sold in increments of 4-Card comes with 4 Ports) | E187: 122 | F187: 0 | G187: 0 | I187: 60 | Q187: 122 | R187: 140
A188: OS7000WFAX/XAR | B188: OS 7200/7400 SVMi-20i Fax License (Maximum 4) (Sold in increments of 1) | E188: 249 | F188: 0 | G188: 0 | I188: 90 | Q188: 249 | R188: 286
A189: SIP LICENSE (Must submit a License Request Form to order OfficeServ Licenses) | G189: =SUM(G190:G197) -> 0 | I189: 100
A190: KP-AP9-W3P/XAR | B190: Per Seat License for 3rd Party SIP Phone | E190: =IF($S$16="USA",Q190,R190) -> 150 | F190: =+(1-E$13)*D190*E190 -> 0 | G190: 0 | I190: 110 | Q190: 150 | R190: 173
A191: KP-AP9-WSA/STD | B191: SIP Application Ports for IP-UMS, IVR, ACD | E191: 36 | F191: =+(1-E$13)*D191*E191 -> 0 | G191: 0 | I191: 120 | Q191: 36 | R191: 41
A192: KP-AP9-WT3/STD | B192: SIP per Trunk License (OS-7030 System to ITSP) | E192: 16 | F192: 0 | G192: 0 | I192: 130 | K192: 4 | L192: 1 | M192: 1 | Q192: 16 | R192: 18
A193: KP-AP9-WT1/STD | B193: SIP per Trunk License (OS-7100 System to ITSP) | E193: 16 | F193: 0 | G193: 0 | I193: 140 | K193: 8 | L193: 2 | M193: 2 | Q193: 16 | R193: 18
A194: KP-AP9-WTS/STD | B194: SIP per Trunk License (OS-7200-S System to ITSP) | E194: 26 | F194: 0 | G194: 0 | I194: 150 | K194: 12 | L194: 3 | M194: 3 | Q194: 26 | R194: 30
A195: KP-AP9-WT2/STD | B195: SIP per Trunk License (OS-7200 System to ITSP) | E195: 26 | F195: 0 | G195: 0 | I195: 160 | K195: 16 | L195: 4 | M195: 4 | Q195: 26 | R195: 30
A196: KP-AP9-WT4/STD | B196: SIP per Trunk License (OS-7400 System to ITSP) | E196: 26 | F196: 0 | G196: 0 | I196: 170 | M196: 5 | Q196: 26 | R196: 30
A197: OS7000WFMC/STD | B197: WE VoIP License | E197: 56 | F197: 0 | G197: 0 | I197: 180 | M197: 6 | Q197: 56 | R197: 64
A198: SERVICE LICENSE (Must submit a License Request Form to order OfficeServ Licenses) | G198: =SUM(G199:G206) -> 0 | I198: 190 | M198: 7
A199: KP-AP1-WSP/XAR | B199: OfficeServ Softphone or Communicator SoftPhone Mode | E199: =IF($S$16="USA",Q199,R199) -> 205 | F199: =+(1-E$13)*D199*E199 -> 0 | G199: 0 | I199: 200 | M199: 8 | Q199: 205 | R199: 236
A200: KP-AP6-WMX/STD | B200: Executive Mobex per Port License (all 7000 systems) (Required for Executive Mobex Only) | E200: 62 | F200: =+(1-E$13)*D200*E200 -> 0 | G200: =F200 -> 0 | I200: 210 | Q200: 62 | R200: 71
A201: KP-AP9-WS3/STD | B201: SPNet License (OS-7030 System to other Samsung OfficeServ system) | E201: 83 | F201: 0 | G201: 0 | I201: 220 | Q201: 83 | R201: 95
A202: KP-AP9-WS1/STD | B202: SPNet License (OS-7100 System to other Samsung OfficeServ system) | E202: 83 | F202: 0 | G202: 0 | I202: 230 | Q202: 83 | R202: 95
... 158 more rows

Sheet Remove from Order Form
A2: F-B-OS7200DEMO | B2: OS 7200 Demo Kit Includes: OS7200 universal cabinet, MP20 main control processor, combo (DLI & SLI) card, 8-port CO trunk card, SD Card, OAS Card, RCM2 card, SVMi-20i card, Dual Band WAP, DS 5021D Digital Keyset, SMT-i5243 Keyset, 2ea. SMT-W5120D Handset, 1 OfficeServ Softphone, 1 OfficeServ Operator, 1 OfficeServ Dataview, 1 OfficeServ Link, 1ea of OS Communicator UCPhone and DeskPhone Mode, and 1 rolling case. | E2: =IF($S$16="USA",Q2,R2) -> 0
A3: OS71SBSIP10A | B3: OS7100 Small Business System Package - GO Green Includes: , 1 ea System Cabinet, 1 ea. MP10a Main Processor with one (1) MGI License, 1 ea OS7100SD10a Card, 1 ea. UNI Card, 2 ea 4DLM Interface Module, 1 ea. 4TRM Card, 5 ea. 28B iDCS Keysets, 1ea. SMT-i5210D 14B IP Keyset | E3: 0
A4: OS71DSIPPKG10A | B4: OS7100 Small Business System Package - GO Green Includes: 1 ea System Cabinet, 1 ea. MP10a Main Processor with one (1) MGI License, 1 ea OS7100SD10a Card, 1 ea. UNI Card, 2 ea 4DLM Interface Module, 1 ea. 4TRM Card, 4 ea. 21B DS Digital Keysets, 1ea. SMT-i5210D 14B IP Keyset | E4: 0
A5: OS7100SIPPKG | B5: OS7100 SIP Pkg - Includes: 1 ea System Cabinet, 1 ea. MP10a Main Processor with four (4) MGI Licenses, 1 ea OS7100SD10a Card, 1 ea. UNI Card, 1 ea 4DLM Interface Module, 4 ea. 21B DS Digital Keysets, 4 ea. SIP Trunk Licenses | E5: 0
A6: F-B-OS7100-01 | B6: OS7100 Demo Kit Includes: 1 ea. System Cabinet, 1 ea. OS7100SD10a Card, 1 ea. MP10a card, 1 ea. UNI Card, 1 ea. 4DLM Module, 1ea.OS 4SL2U Module, 1 ea. 4TRM w/CID, 1 ea. 21B Digital Keyset, 1 ea. i5243D 19B IP Keyset, 1ea of OS Communicator UCPhone and DeskPhone Mode, 1-Link/Easyset, 1-OS Operator, 1-OS Softphone, 1-OS MGI License, 1 rolling case. | E6: 0 | F6: =+(1-E$13)*D6*E6 -> 0
A7: OS DataView KP-AP2XWDV/XAR | B7: OfficeServ DataView License | E7: 0
A8: OSM Phone KP-AP8XWCH/STD | B8: OS Messenger Phone User SMT-i5243 only | E8: =IF($S$16="USA",Q8,R8) -> 0 | F8: =+(1-E$13)*D8*E8 -> 0
A9: OSM PC KP-AP8XWCP/STD | B9: OS Messenger PC Collaboration User (Requires Link V3) | E9: =IF($S$16="USA",Q9,R9) -> 0 | F9: =+(1-E$13)*D9*E9 -> 0
A10: F-B-OS7400-02 | B10: OS 7400 Large IP Solutions Kit Includes: 1ea - CRM Module, 1ea. LP40 processor, 1ea OS 7400 Universal cabinet, 1 ea OS MP40/SD card, 2 ea -OAS Card, 1ea. SVMi-20i card, 30ea. SMT-i3105D IP Keysets, 50ea - SMT-i5210D- IP Keysets | E10: =IF($S$16="USA",Q10,R10) -> 0
A11: L-SB-OSCALL | B11: OfficeServ Call Sales Brochure (25 pack) | E11: =IF($S$16="USA",Q11,R11) -> 0 | F11: =+(1-E$13)*D11*E11 -> 0
A12: L-SB-OSWLAN | B12: OfficeServ Wireless Sales Brochure (25 Pack) | E12: =IF($S$16="USA",Q12,R12) -> 0 | F12: =+(1-E$13)*D12*E12 -> 0
